fUSD/lending_fUSD_20250602
["ID","MTS","AMOUNT","RATE_DAILY","PERIOD"]
[363829585,1748891401212,3051.17,0.00041095,120]
[363829586,1748891402832,460.0,0.00041095,120]
[363829587,1748891403867,460.0,0.00041095,120]
[363829588,1748891404090,423.93025735,0.00041095,120]
[363829589,1748891406128,460.0,0.00041095,120]
[363829590,1748891406181,460.0,0.00041095,120]
[363829591,1748891406225,460.0,0.00041095,120]
[363829592,1748891406289,460.0,0.00041095,120]
[363829593,1748891406579,460.0,0.00041095,120]
[363829594,1748891406902,460.0,0.00041095,120]
[363829595,1748891407598,460.0,0.00041095,120]
[363829596,1748891408931,460.0,0.00041095,120]
[363829597,1748891409053,460.0,0.00041095,120]
[363829598,1748891409178,460.0,0.00041095,120]
[363829599,1748891409683,460.0,0.00041095,120]
[363829600,1748891409850,460.0,0.00041095,120]
[363829601,1748891410782,460.0,0.00041095,120]
[363829602,1748891411443,460.0,0.00041095,120]
[363829603,1748891411895,460.0,0.00041095,120]
[363829604,1748891411943,460.0,0.00041095,120]
[363829605,1748891412224,460.0,0.00041095,120]
[363829606,1748891412293,460.0,0.00041095,120]
[363829607,1748891412710,460.0,0.00041095,120]
[363829608,1748891412845,380.0,0.00041095,120]
[363829609,1748891413102,460.0,0.00041095,120]
[363829610,1748891413510,460.0,0.00041095,120]
[363829611,1748891413561,460.0,0.00041095,120]
[363829612,1748891414092,460.0,0.00041095,120]
[363829613,1748891414594,460.0,0.00041095,120]
[363829614,1748891414848,460.0,0.00041095,120]
[363829615,1748891415032,460.0,0.00041095,120]
[363829616,1748891416245,891.85,0.00041095,120]
[363829617,1748891416717,460.0,0.00041095,120]
[363829618,1748891416844,2481.39,0.00041095,120]
[363829619,1748891417368,460.0,0.00041095,120]
[363829620,1748891419407,460.0,0.00041095,120]
[363829621,1748891419472,460.0,0.00041095,120]
[363829622,1748891419787,380.0,0.00041095,120]
[363829623,1748891419828,460.0,0.00041095,120]
[363829624,1748891420539,460.0,0.00041095,120]
[363829625,1748891421248,460.0,0.00041095,120]
[363829626,1748891421899,460.0,0.00041095,120]
[363829627,1748891422209,460.0,0.00041095,120]
[363829628,1748891422668,460.0,0.00041095,120]
[363829629,1748891423221,380.0,0.00041095,120]
[363829630,1748891423949,460.0,0.00041095,120]
[363829631,1748891424252,380.0,0.00041095,120]
[363829632,1748891424694,655.72,0.00041095,120]
[363829633,1748891424767,460.0,0.00041095,120]
[363829634,1748891425240,460.0,0.00041095,120]
[363829635,1748891425655,460.0,0.00041095,120]
[363829636,1748891425991,1630.44,0.00041095,120]
[363829637,1748891426472,460.0,0.00041095,120]
[363829638,1748891426540,380.0,0.00041095,120]
[363829639,1748891427205,460.0,0.00041095,120]
[363829640,1748891427275,460.0,0.00041095,120]
[363829641,1748891429326,300.0,0.00041095,120]
[363829642,1748891429506,460.0,0.00041095,120]
[363829643,1748891429804,460.0,0.00041095,120]
[363829644,1748891430857,460.0,0.00041095,120]
[363829649,1748891432166,-166.84,0.00019384,2]
[363829650,1748891432177,-250.0,0.00019419,2]
[363829651,1748891432187,-150.0,0.00019503,7]
[363829652,1748891432196,-218.2577511,0.00019597,2]
[363829653,1748891432206,-151.0,0.00019696,2]
[363829654,1748891432217,-1200.0,0.00019696,2]
[363829655,1748891432226,-989.72095603,0.00019697,2]
[363829656,1748891432237,-4614.66753364,0.00019697,2]
[363829657,1748891432249,-2125.87269152,0.00019697,2]
[363829658,1748891432260,-549.3,0.00019697,2]
[363829659,1748891432271,-5526.35881881,0.00019697,2]
[363829660,1748891432281,-333.01,0.00019778,2]
[363829661,1748891432290,-1068.26618796,0.000199,2]
[363829662,1748891432314,-3733.26148304,0.000199,2]
[363829663,1748891432324,-674.8347,0.00019925,2]
[363829664,1748891432334,-869.9946,0.00019925,2]
[363829665,1748891432345,-2771.08917912,0.00019939,2]
[363829666,1748891432360,-3934.85154608,0.00019939,2]
[363829667,1748891432370,-600.225016,0.00019939,2]
[363829668,1748891432379,-343.96290794,0.00019939,2]
[363829669,1748891432389,-354.0,0.00019999,2]
[363829670,1748891432398,-4000.0,0.0002,2]
[363829671,1748891432407,-1669.5749,0.0002,2]
[363829672,1748891432417,-1669.57491,0.0002,2]
[363829673,1748891432426,-382.6066507,0.0002,2]
[363829674,1748891432442,-538.87074699,0.0002,2]
[363829675,1748891432453,-748.09750231,0.0002,2]
[363829676,1748891432462,-133.27749769,0.0002,2]
[363829677,1748891432473,-819.73799985,0.0002,2]
[363829678,1748891432484,-716.55941246,0.0002,2]
[363829679,1748891432494,-1513.30327704,0.0002,2]
[363829680,1748891432505,-156.27163296,0.0002,2]
[363829681,1748891432515,-991.63709954,0.0002,2]
[363829682,1748891432534,-677.93780046,0.0002,2]
[363829684,1748891432543,-204.0,0.0002001,2]
[363829686,1748891432553,-3494.00275428,0.00020025,2]
[363829692,1748891432610,1512.1,0.00041095,120]
[363829717,1748891433034,460.0,0.00041095,120]
[363829788,1748891433753,460.0,0.00041095,120]
[363829882,1748891434695,914.21,0.00041095,120]
[363829927,1748891435123,460.0,0.00041095,120]
[363829991,1748891435749,1125.68,0.00041095,120]
[363829998,1748891435811,460.0,0.00041095,120]
[363830016,1748891435973,460.0,0.00041095,120]
[363830034,1748891436146,4641.74,0.00041095,120]
[363830039,1748891436347,460.0,0.00041095,120]
[363830049,1748891436451,215.0113172,0.00041095,120]
[363830117,1748891437116,975.97,0.00041095,120]
[363830179,1748891437721,460.0,0.00041095,120]
[363830205,1748891437943,460.0,0.00041095,120]
[363830216,1748891438006,-522.27499128,0.00020025,2]
[363830228,1748891438116,-18372.75031644,0.00020025,2]
[363830230,1748891438126,-82565.15382965,0.00020025,2]
[363830232,1748891438143,-517.17495246,0.00020025,2]
[363830237,1748891438187,575.40550485,0.00041095,120]
[363830243,1748891438229,460.0,0.00041095,120]
[363830245,1748891438242,-34564.72878415,0.00020025,2]
[363830253,1748891438323,-11189.15573215,0.00020025,2]
[363830255,1748891438337,-373.2110064,0.00020025,2]
[363830257,1748891438351,-393.912,0.00020025,2]
[363830260,1748891438363,-852.5130012,0.00020025,2]
[363830262,1748891438374,-620.085039,0.00020025,2]
[363830397,1748891440152,-372.34049029,0.00020025,2]
[363830403,1748891440206,-495.34351022,0.00020025,2]
[363830414,1748891440311,-3000.0,0.00020025,2]
[363830416,1748891440322,-1162.5447721,0.00020025,2]
[363830418,1748891440334,-420.0,0.00020025,2]
[363830420,1748891440345,-2265.0841597,0.00020025,2]
[363830423,1748891440359,-317.10544693,0.00020025,2]
[363830426,1748891440382,-12437.44025967,0.00020025,2]
[363830428,1748891440393,-754.3143952,0.00020025,2]
[363830430,1748891440403,-3374.63065148,0.00020025,2]
[363830432,1748891440415,-487.52557497,0.00020025,2]
[363830439,1748891440474,-18220.90293848,0.00020025,2]
[363830441,1748891440485,-23556.80590402,0.00020025,2]
[363830444,1748891440497,-296.82371763,0.00020025,2]
[363830446,1748891440508,-1214.98276237,0.00020025,2]
[363830448,1748891440519,-1629.89499954,0.00020025,2]
[363830465,1748891440672,-0.04462946,0.00020025,2]
[363830467,1748891440684,-883.92599354,0.00020025,2]
[363830521,1748891441219,460.0,0.00041095,120]
[363830541,1748891441421,460.0,0.00041095,120]
[363830568,1748891441679,424.59686382,0.00041095,120]
[363830586,1748891441860,460.0,0.00041095,120]
[363830654,1748891442996,460.0,0.00041095,120]
[363830657,1748891443161,460.0,0.00041095,120]
[363830658,1748891443191,-203.0,0.0002001,2]
[363830659,1748891443201,-6040.55812187,0.00020025,2]
[363830660,1748891443213,-3045.11161068,0.00020025,2]
[363830661,1748891443296,-1153.79956428,0.00020025,2]
[363830662,1748891443355,-26694.14613806,0.00020025,2]
[363830663,1748891443365,-7554.1556744,0.00020039,2]
[363830664,1748891443375,-947.34,0.00020052,2]
[363830665,1748891443385,-500.0,0.00020073,2]
[363830666,1748891443395,-172.57,0.00020132,2]
[363830667,1748891443406,-1679.01872004,0.0002015,2]
[363830669,1748891443416,-169.68,0.00020187,2]
[363830671,1748891443425,-245.66078865,0.00020244,2]
[363830673,1748891443434,-4210.45123587,0.00020348,2]
[363830675,1748891443444,-168.01978505,0.00020348,2]
[363830677,1748891443454,-20790.56,0.00020548,2]
[363830679,1748891443464,-1123.08389117,0.000206,2]
[363830681,1748891443473,-1000.0,0.00020621,2]
[363830683,1748891443483,-6705.94072519,0.00020652,2]
[363830684,1748891443492,-21991.51413041,0.000207,2]
[363830685,1748891443502,-3900.0,0.000207,2]
[363830687,1748891443512,-150.0,0.00020711,2]
[363830689,1748891443521,-150.0,0.00020711,2]
[363830691,1748891443531,-150.0,0.00020711,2]
[363830692,1748891443540,-150.0,0.00020711,2]
[363830694,1748891443550,-150.0,0.00020711,2]
[363830696,1748891443559,-150.0,0.00020711,2]
[363830698,1748891443569,-250.0,0.00020711,2]
[363830707,1748891443644,-433.0,0.00020711,2]
[363830709,1748891443654,-500.0,0.00020711,2]
[363830711,1748891443664,-498.0,0.00020711,2]
[363830713,1748891443673,-500.0,0.00020711,2]
[363830715,1748891443683,-154.88981804,0.00020711,2]
[363830717,1748891443693,-207.34587752,0.00020711,2]
[363830718,1748891443703,-204.25548793,0.00020711,2]
[363830720,1748891443712,-150.0,0.00020711,2]
[363830722,1748891443722,-150.0,0.00020711,2]
[363830724,1748891443732,-2338.0,0.00020711,2]
[363830726,1748891443742,-185.96,0.00020732,2]
[363830728,1748891443751,-150.0,0.00020738,2]
[363830730,1748891443760,-250.0,0.00020738,2]
[363830732,1748891443769,-150.0,0.00020738,2]
[363830734,1748891443779,-150.0,0.00020738,2]
[363830736,1748891443788,-150.0,0.00020738,2]
[363830738,1748891443797,-433.0,0.00020738,2]
[363830740,1748891443807,-500.0,0.00020738,2]
[363830742,1748891443817,-498.0,0.00020738,2]
[363830744,1748891443827,-500.0,0.00020738,2]
[363830746,1748891443837,-150.0,0.00020738,2]
[363830749,1748891443848,-150.0,0.00020738,2]
[363830750,1748891443859,-2338.0,0.00020738,2]
[363830753,1748891443869,-250.0,0.00020766,2]
[363830755,1748891443878,-267.65058881,0.00020766,2]
[363830757,1748891443888,-200.0,0.00020766,2]
[363830759,1748891443897,-255.94703788,0.00020766,2]
[363830761,1748891443907,-433.0,0.00020766,2]
[363830762,1748891443916,-500.0,0.00020766,2]
[363830765,1748891443926,-498.0,0.00020766,2]
[363830766,1748891443935,-500.0,0.00020766,2]
[363830768,1748891443944,-150.0,0.00020766,2]
[363830770,1748891443954,-2338.0,0.00020766,2]
[363830771,1748891443963,-433.0,0.00020793,2]
[363830772,1748891443973,-500.0,0.00020793,2]
[363830773,1748891443982,-500.0,0.00020793,2]
[363830774,1748891443992,-186.02643847,0.00020793,2]
[363830775,1748891444001,-2338.0,0.00020793,2]
[363830776,1748891444010,-433.0,0.00020821,2]
[363830777,1748891444020,-500.0,0.00020821,2]
[363830778,1748891444030,-498.0,0.00020821,2]
[363830779,1748891444039,-500.0,0.00020821,2]
[363830780,1748891444048,-2338.0,0.00020821,2]
[363830781,1748891444058,-8021.28,0.00020822,2]
[363830782,1748891444067,-433.0,0.00020848,2]
[363830783,1748891444077,-500.0,0.00020848,2]
[363830784,1748891444086,-498.0,0.00020848,2]
[363830785,1748891444095,-500.0,0.00020848,2]
[363830786,1748891444107,-2338.0,0.00020848,2]
[363830787,1748891444116,-433.0,0.00020875,2]
[363830788,1748891444126,-500.0,0.00020875,2]
[363830789,1748891444137,-498.0,0.00020875,2]
[363830790,1748891444148,-520.7774755,0.00020875,2]
[363830791,1748891444157,-2338.0,0.00020875,2]
[363830792,1748891444167,-151.0,0.00020895,2]
[363830793,1748891444179,-1115.157653,0.00020895,2]
[363830794,1748891444188,-151.0,0.00020895,2]
[363830795,1748891444197,-693.3919763,0.00020895,2]
[363830796,1748891444207,-151.89135924,0.00020895,2]
[363830797,1748891444218,-207.4,0.00020895,2]
[363830798,1748891444228,-400.0,0.000209,7]
[363830799,1748891444238,-433.0,0.00020903,2]
[363830800,1748891444247,-500.0,0.00020903,2]
[363830801,1748891444257,-498.0,0.00020903,2]
[363830802,1748891444267,-2338.0,0.00020903,2]
[363830803,1748891444276,-400.0,0.00020922,2]
[363830804,1748891444285,-500.0,0.00020922,2]
[363830805,1748891444295,-400.0,0.00020922,2]
[363830806,1748891444305,-433.0,0.0002093,2]
[363830807,1748891444320,-500.0,0.0002093,2]
[363830808,1748891444330,-498.0,0.0002093,2]
[363830809,1748891444339,-2338.0,0.0002093,2]
[363830810,1748891444348,-433.0,0.00020958,2]
[363830811,1748891444358,-500.0,0.00020958,2]
[363830812,1748891444368,-498.0,0.00020958,2]
[363830813,1748891444378,-2338.0,0.00020958,2]
[363830814,1748891444387,-433.0,0.00020985,2]
[363830815,1748891444397,-309.69201122,0.00020985,2]
[363830816,1748891444407,-498.0,0.00020985,2]
[363830817,1748891444418,-2338.0,0.00020985,2]
[363830818,1748891444427,-1000.0,0.00020986,2]
[363830819,1748891444438,-1158.51626209,0.00021,2]
[363830820,1748891444447,-191.20736164,0.00021,2]
[363830821,1748891444457,-2000.0,0.00021,3]
[363830822,1748891444466,-157.54703,0.00021,2]
[363830823,1748891444476,-433.0,0.00021012,2]
[363830824,1748891444485,-498.0,0.00021012,2]
[363830825,1748891444494,-2338.0,0.00021012,2]
[363830826,1748891444504,-433.0,0.0002104,2]
[363830827,1748891444513,-498.0,0.0002104,2]
[363830828,1748891444524,-2338.0,0.0002104,2]
[363830829,1748891444533,-1000.0,0.00021049,2]
[363830830,1748891444542,-1000.0,0.00021049,2]
[363830831,1748891444551,-5754.11083634,0.0002105,2]
[363830832,1748891444567,-383159.23751714,0.0002105,2]
[363830833,1748891444576,-433.0,0.00021067,2]
[363830834,1748891444586,-498.0,0.00021067,2]
[363830835,1748891444598,-2338.0,0.00021067,2]
[363830836,1748891444608,-250.0,0.00021069,2]
[363830837,1748891444617,-500.0,0.00021073,2]
[363830838,1748891444627,-500.0,0.00021073,2]
[363830839,1748891444636,-500.0,0.00021073,2]
[363830840,1748891444645,-302.35007709,0.00021073,2]
[363830841,1748891444654,-500.0,0.00021073,2]
[363830842,1748891444664,-500.0,0.00021073,2]
[363830843,1748891444674,-433.0,0.00021095,2]
[363830844,1748891444682,-498.0,0.00021095,2]
[363830845,1748891444692,-2338.0,0.00021095,2]
[363830846,1748891444701,-433.0,0.00021122,2]
[363830847,1748891444710,-498.0,0.00021122,2]
[363830848,1748891444720,-2338.0,0.00021122,2]
[363830849,1748891444729,-300.0,0.00021125,2]
[363830851,1748891444739,-433.0,0.00021149,2]
[363830852,1748891444748,-498.0,0.00021149,2]
[363830853,1748891444758,-2338.0,0.00021149,2]
[363830854,1748891444767,-1500.0,0.00021168,2]
[363830855,1748891444776,-433.0,0.00021177,2]
[363830856,1748891444785,-498.0,0.00021177,2]
[363830857,1748891444794,-2338.0,0.00021177,2]
[363830858,1748891444804,-1123.08389112,0.00021196,2]
[363830859,1748891444813,-95366.53902363,0.000212,2]
[363830860,1748891444822,-433.0,0.00021204,2]
[363830861,1748891444832,-498.0,0.00021204,2]
[363830862,1748891444841,-2338.0,0.00021204,2]
[363830863,1748891444851,-433.0,0.00021232,2]
[363830864,1748891444860,-498.0,0.00021232,2]
[363830865,1748891444870,-2338.0,0.00021232,2]
[363830866,1748891444879,-433.0,0.00021259,2]
[363830867,1748891444888,-498.0,0.00021259,2]
[363830868,1748891444898,-2338.0,0.00021259,2]
[363830869,1748891444907,-433.0,0.00021286,2]
[363830870,1748891444917,-498.0,0.00021286,2]
[363830871,1748891444926,-2338.0,0.00021286,2]
[363830872,1748891444936,-433.0,0.00021314,2]
[363830873,1748891444945,-498.0,0.00021314,2]
[363830874,1748891444955,-2338.0,0.00021314,2]
[363830875,1748891444964,-435.6167806,0.00021341,2]
[363830876,1748891444974,-520.06555879,0.00021341,2]
[363830877,1748891444983,-2357.26769123,0.00021341,2]
[363830878,1748891444992,-852.403,0.00021366,2]
[363830879,1748891445002,-7006.0,0.00021366,2]
[363830880,1748891445011,-186.866,0.00021366,2]
[363830881,1748891445021,-4075.0,0.00021366,2]
[363830882,1748891445030,-882.0,0.00021366,2]
[363830883,1748891445041,-6705.94072519,0.00021366,2]
[363830884,1748891445050,-250.0,0.00021394,2]
[363830885,1748891445059,-221.699,0.00021396,2]
[363830886,1748891445069,-190.209,0.00021396,2]
[363830887,1748891445078,-151.36,0.00021396,2]
[363830888,1748891445087,-150.0,0.00021396,2]
[363830889,1748891445097,-150.0,0.00021396,2]
[363830890,1748891445107,-150.0,0.00021396,2]
[363830891,1748891445117,-943.0,0.00021396,2]
[363830892,1748891445126,-638.826,0.00021396,2]
[363830893,1748891445138,-1467.0,0.00021396,2]
[363830894,1748891445148,-801.0,0.00021396,2]
[363830895,1748891445157,-684.163,0.00021396,2]
[363830896,1748891445167,-1253.0,0.00021396,2]
[363830897,1748891445176,-925.0,0.00021396,2]
[363830898,1748891445187,-1271.0,0.00021396,2]
[363830899,1748891445197,-557.0,0.00021396,2]
[363830900,1748891445206,-151.0,0.00021443,2]
[363830901,1748891445217,-250.0,0.00021453,2]
[363830902,1748891445226,-1680.0,0.00021557,2]
[363830903,1748891445235,-343.96290789,0.00021562,2]
[363830904,1748891445245,-137.91092563,0.00021621,2]
[363830905,1748891445260,-1162.20703909,0.00021621,2]
[363830906,1748891445270,-1000.0,0.00021621,2]
[363830907,1748891445280,-1001.90815551,0.00021621,2]
[363830908,1748891445290,-1000.0,0.00021621,2]
[363830909,1748891445299,-1000.0,0.00021621,2]
[363830910,1748891445311,-1000.0,0.00021621,2]
[363830911,1748891445322,-900.73,0.00021644,2]
[363830912,1748891445333,-1500.0,0.00021644,2]
[363830913,1748891445343,-301.18,0.00021651,2]
[363830914,1748891445355,-303.72,0.00021651,2]
[363830915,1748891445364,-300.39,0.00021651,2]
[363830916,1748891445374,-303.63,0.00021651,2]
[363830917,1748891445384,-305.15,0.00021651,2]
[363830918,1748891445393,-301.74,0.00021651,2]
[363830919,1748891445404,-305.53,0.00021651,2]
[363830920,1748891445414,-300.18,0.00021651,2]
[363830921,1748891445423,-303.12,0.00021651,2]
[363830922,1748891445433,-302.06,0.00021651,2]
[363830923,1748891445443,-305.03,0.00021651,2]
[363830924,1748891445453,-301.35,0.00021651,2]
[363830925,1748891445463,-304.47,0.00021651,2]
[363830926,1748891445473,-302.04,0.00021651,2]
[363830927,1748891445482,-305.28,0.00021651,2]
[363830928,1748891445492,-304.89,0.00021651,2]
[363830929,1748891445502,-302.22,0.00021651,2]
[363830930,1748891445512,-303.85,0.00021651,2]
[363830931,1748891445522,-304.17,0.00021651,2]
[363830932,1748891445532,-7337.83752837,0.000217,2]
[363830933,1748891445542,-1172.99888985,0.00021716,2]
[363830934,1748891445552,-1000.0,0.00021773,2]
[363830935,1748891445562,-161.85462089,0.000218,2]
[363830936,1748891445572,-301.61,0.000218,2]
[363830937,1748891445582,-304.91,0.000218,2]
[363830938,1748891445593,-322.93258773,0.00021806,2]
[363830939,1748891445603,-303.32,0.00021834,2]
[363830940,1748891445613,-305.55,0.00021834,2]
[363830941,1748891445622,-800.0,0.000219,7]
[363830942,1748891445633,-151.0,0.000219,2]
[363830943,1748891445643,-151.0,0.000219,2]
[363830944,1748891445653,-151.0,0.000219,2]
[363830945,1748891445663,-151.0,0.000219,2]
[363830946,1748891445673,-151.0,0.000219,2]
[363830947,1748891445683,-151.0,0.000219,2]
[363830948,1748891445693,-151.0,0.000219,2]
[363830949,1748891445703,-172.305685,0.000219,2]
[363830950,1748891445712,-172.305685,0.000219,2]
[363830951,1748891445723,-16412.25925556,0.000219,2]
[363830952,1748891445732,-16412.25925541,0.000219,2]
[363830953,1748891445742,-16412.25925541,0.000219,2]
[363830954,1748891445752,-16412.25925541,0.000219,2]
[363830955,1748891445762,-16412.25925541,0.000219,2]
[363830956,1748891445772,-16412.25925541,0.000219,2]
[363830957,1748891445782,-16412.25925541,0.000219,2]
[363830958,1748891445791,-16412.25925541,0.000219,2]
[363830959,1748891445801,-204.0,0.00021915,4]
[363830960,1748891445810,-515.48990551,0.00021918,2]
[363830961,1748891445820,-16412.25925541,0.00021983,2]
[363830962,1748891445830,-231.87213221,0.00021995,2]
[363830963,1748891445840,-238.43015521,0.00022,2]
[363830964,1748891445852,-2253.21889679,0.00022,12]
[363830965,1748891445861,-248.60446497,0.00022,2]
[363830966,1748891445870,-500.0,0.00022,2]
[363830967,1748891445880,-379.0,0.00022,2]
[363830968,1748891445891,-158.0,0.00022,2]
[363830969,1748891445901,-1368.24394721,0.00022004,2]
[363830971,1748891445911,-1368.24394721,0.00022004,2]
[363830972,1748891445920,-1368.24394721,0.00022004,2]
[363830973,1748891445930,-1368.24394721,0.00022004,2]
[363830974,1748891445939,-1368.24394721,0.00022004,2]
[363830975,1748891445949,-1368.24394721,0.00022004,2]
[363830976,1748891445958,-1368.24394721,0.00022004,2]
[363830977,1748891445967,-1368.24394721,0.00022004,7]
[363830978,1748891445977,-1368.24394721,0.00022004,7]
[363830979,1748891445987,-1368.24394721,0.00022004,7]
[363830980,1748891445997,-1368.24394721,0.00022004,7]
[363830981,1748891446007,-1368.24394721,0.00022004,7]
[363830982,1748891446016,-1368.24394721,0.00022004,7]
[363830983,1748891446026,-1368.24394721,0.00022004,7]
[363830984,1748891446036,-1000.0,0.00022005,2]
[363830985,1748891446046,-1000.0,0.00022005,7]
[363830986,1748891446056,-1000.0,0.00022005,7]
[363830987,1748891446065,-150.0,0.00022049,2]
[363830988,1748891446075,-150.0,0.00022049,2]
[363830989,1748891446085,-571.91929123,0.00022049,2]
[363830990,1748891446094,-6149.09830101,0.00022049,2]
[363830991,1748891446106,-858.17276784,0.00022068,2]
[363830992,1748891446115,-6705.94072519,0.00022079,2]
[363830993,1748891446126,-8760.68836244,0.000221,2]
[363830994,1748891446137,-232.9822794,0.0002211,2]
[363830995,1748891446147,-1504.71768534,0.00022168,2]
[363830996,1748891446157,-1500.0,0.00022168,2]
[363830997,1748891446167,-1500.0,0.00022168,2]
[363830998,1748891446178,-1344.3092827,0.00022168,2]
[363830999,1748891446187,-379.0,0.00022192,7]
[363831000,1748891446197,-16412.25925541,0.00022238,2]
[363831001,1748891446207,-156.587,0.00022264,2]
[363831002,1748891446219,-215.0738,0.00022264,2]
[363831003,1748891446229,-947.34,0.00022316,2]
[363831004,1748891446239,-900.0,0.00022428,2]
[363831005,1748891446250,-379.0,0.00022466,7]
[363831006,1748891446261,-16412.25925541,0.00022494,2]
[363831007,1748891446272,-300.0,0.00022495,2]
[363831008,1748891446282,-34395.17956432,0.000225,2]
[363831009,1748891446291,-1362.00062862,0.000225,2]
[363831010,1748891446301,-200.39175,0.000225,2]
[363831011,1748891446311,-1000.0,0.0002256,2]
[363831012,1748891446321,-150.99,0.00022562,2]
[363831013,1748891446331,-499.99,0.00022562,2]
[363831014,1748891446340,-861.83,0.00022562,2]
[363831015,1748891446350,-9999.99,0.00022562,2]
[363831016,1748891446360,-7379.27,0.00022562,2]
[363831017,1748891446370,-150.99,0.00022562,2]
[363831018,1748891446380,-500.0,0.000226,2]
[363831019,1748891446390,-500.0,0.000226,2]
[363831020,1748891446400,-507.20664259,0.0002271,2]
[363831021,1748891446410,-2000.0,0.00022716,2]
[363831022,1748891446420,-1500.0,0.00022716,2]
[363831023,1748891446431,-500.0,0.00022722,2]
[363831024,1748891446440,-500.0,0.00022722,2]
[363831025,1748891446450,-379.0,0.0002274,7]
[363831026,1748891446460,-500.0,0.00022743,2]
[363831027,1748891446471,-16412.25925541,0.00022749,2]
[363831028,1748891446481,-500.0,0.0002278,2]
[363831029,1748891446491,-6705.94072519,0.00022793,2]
[363831030,1748891446500,-250.59529371,0.00022815,2]
[363831031,1748891446510,-508.29068468,0.00022837,2]
[363831032,1748891446519,-500.0,0.00022837,2]
[363831033,1748891446529,-500.0,0.00022837,2]
[363831034,1748891446539,-483.89,0.00022855,2]
[363831035,1748891446548,-400.0,0.00022856,13]
[363831036,1748891446557,-400.0,0.00022856,13]
[363831037,1748891446567,-400.0,0.00022856,13]
[363831038,1748891446577,-400.0,0.00022856,13]
[363831039,1748891446587,-400.0,0.00022856,13]
[363831040,1748891446596,-400.0,0.00022856,13]
[363831041,1748891446606,-400.0,0.00022856,13]
[363831042,1748891446617,-400.0,0.00022856,13]
[363831043,1748891446626,-400.0,0.00022856,13]
[363831044,1748891446636,-400.0,0.00022856,13]
[363831045,1748891446646,-400.0,0.00022856,13]
[363831046,1748891446657,-400.0,0.00022856,13]
[363831047,1748891446667,-400.0,0.00022856,13]
[363831048,1748891446677,-400.0,0.00022856,13]
[363831049,1748891446687,-400.0,0.00022856,13]
[363831050,1748891446698,-400.0,0.00022856,13]
[363831051,1748891446709,-400.0,0.00022856,13]
[363831052,1748891446718,-400.0,0.00022856,13]
[363831053,1748891446728,-400.0,0.00022856,13]
[363831054,1748891446738,-400.0,0.00022856,13]
[363831055,1748891446748,-402.0,0.00022856,13]
[363831056,1748891446759,-200.0,0.00022856,2]
[363831057,1748891446769,-200.0,0.00022856,2]
[363831058,1748891446779,-200.0,0.00022856,2]
[363831059,1748891446789,-200.0,0.00022856,2]
[363831060,1748891446798,-200.0,0.00022856,2]
[363831061,1748891446808,-200.0,0.00022856,2]
[363831062,1748891446818,-200.0,0.00022856,2]
[363831063,1748891446827,-200.0,0.00022856,2]
[363831064,1748891446837,-200.0,0.00022856,2]
[363831065,1748891446847,-200.0,0.00022856,2]
[363831066,1748891446860,-200.0,0.00022856,2]